bitfinex/quotes_ETHUSD_20250529
["timestamp","ask_amount","ask_price","bid_price","bid_amount"]
[1748544382556,4.131,2649.7,2649.2,6.42466383]
[1748544382751,4.13,2649.7,2649.2,6.42466383]
[1748544383053,1.1231,2649.9,2649.2,6.42458101]
[1748544383275,4.13,2649.8,2649.2,6.42458101]
[1748544383769,4.13,2649.8,2649.2,1.89753858]
[1748544383967,0.52531,2649.7,2649.2,1.89753858]
[1748544385056,4.129,2649.7,2649.2,10.0]
[1748544385255,4.129,2649.7,2649.2,4.553792]
[1748544386612,4.129,2649.7,2648.6,0.1312]
[1748544386613,4.8437433,2649.6,2648.6,0.1312]
[1748544386944,1.0695,2649.5,2648.7,2.952]
[1748544387395,1.0695,2649.5,2648.8,1.89753858]
[1748544387771,1.0695,2649.5,2648.9,0.55]
[1748544387973,4.128,2649.4,2649.0,10.0]
[1748544388187,4.128,2649.4,2648.9,0.55]
[1748544389285,4.64775,2649.4,2648.9,0.55]
[1748544389489,4.128,2649.4,2648.9,0.55]
[1748544391015,1.0695,2649.5,2648.9,0.55]
[1748544391181,4.127,2649.4,2649.1,10.0]
[1748544391584,4.127,2649.4,2649.0,11.8651]
[1748544392080,1.0695,2649.5,2649.0,11.8651]
[1748544392081,5.1955,2649.5,2649.0,11.8651]
[1748544392481,4.126,2649.5,2649.1,18.298132]
[1748544392715,4.126,2649.5,2649.1,17.943132]
[1748544393214,4.126,2649.5,2649.0,11.3762]
[1748544394007,4.126,2649.5,2649.0,10.934263]
[1748544395015,4.126,2649.5,2649.0,3.790263]
[1748544395218,4.126,2649.5,2649.1,3.483263]
[1748544396221,4.126,2649.5,2649.1,2.707263]
[1748544396714,4.126,2649.5,2648.9,5.0775378]
[1748544396715,1.0795,2649.4,2648.9,0.55]
[1748544396952,1.0795,2649.4,2648.8,1.89753858]
[1748544397076,1.0795,2649.4,2648.5,17.076007]
[1748544397278,1.64131,2649.4,2648.6,13.502744]
[1748544397480,1.64131,2649.4,2648.5,14.474058]
[1748544397919,1.64131,2649.4,2648.6,10.0]
[1748544398082,1.64131,2649.4,2648.7,15.690249]
[1748544398289,1.64131,2649.4,2648.6,16.017049]
[1748544398494,0.617991,2649.3,2648.6,16.017049]
[1748544398694,0.617991,2649.3,2648.6,13.841769]
[1748544398953,0.617991,2649.3,2648.6,13.359266]
[1748544399741,0.617991,2649.3,2648.6,10.0]
[1748544399899,0.617991,2649.3,2648.6,2.582769]
[1748544401138,1.1254,2649.2,2648.5,10.0]
[1748544401643,1.1254,2649.2,2648.7,4.52818308]
[1748544401848,1.1254,2649.2,2648.6,4.52818308]
[1748544402005,4.122,2649.1,2648.7,1.45281831]
[1748544402364,4.122,2649.1,2648.6,19.193289]
[1748544402651,4.122,2649.1,2648.5,0.55]
[1748544402652,4.122,2649.1,2648.9,21.10972]
[1748544402996,4.122,2649.1,2648.9,11.10972]
[1748544403196,4.122,2649.1,2649.0,10.0]
[1748544403495,4.122,2649.1,2648.9,26.4425]
[1748544403701,4.122,2649.1,2648.9,16.4425]
[1748544404309,4.122,2649.1,2648.8,11.89753858]
[1748544404631,4.122,2649.1,2648.8,1.89753858]
[1748544404835,1.1254,2649.0,2648.6,6.794]
[1748544405032,1.1254,2649.0,2648.5,17.085572]
[1748544406341,4.122,2649.1,2648.7,16.6719]
[1748544406748,1.1254,2649.5,2649.0,0.55]
[1748544406975,5.2454,2649.5,2649.0,0.55]
[1748544407152,5.2454,2649.5,2649.2,10.0]
[1748544407310,5.2454,2649.5,2649.2,14.652423]
[1748544407510,5.2454,2649.5,2649.1,8.053523]
[1748544408036,5.2454,2649.5,2649.0,0.55]
[1748544408231,5.2454,2649.5,2649.1,9.8636]
[1748544408445,5.2454,2649.5,2649.1,6.7705]
[1748544408623,1.1254,2649.5,2649.2,4.284826]
[1748544408805,1.1254,2649.5,2649.1,2.0482]
[1748544409007,5.2444,2649.5,2649.0,0.55]
[1748544409212,5.76884,2649.5,2649.0,3.002119]
[1748544409826,4.118,2649.4,2649.0,3.002119]
[1748544411139,4.118,2649.4,2648.9,11.89753858]
[1748544411448,4.118,2649.4,2649.0,3.164219]
[1748544411850,4.118,2649.4,2648.9,11.89753858]
[1748544412014,1.1244,2649.2,2648.4,50.0]
[1748544412210,0.576784,2649.3,2648.2,48.646798]
[1748544412211,3.77488901,2649.1,2648.2,48.646798]
[1748544412417,1.0683,2648.9,2648.2,42.97378]
[1748544412912,1.0683,2648.9,2648.5,1.89753858]
[1748544413113,1.0683,2648.9,2648.2,43.060967]
[1748544413359,1.0683,2648.9,2647.9,2.739221]
[1748544413586,1.0683,2648.9,2647.8,17.4406]
[1748544413759,1.0683,2648.9,2648.0,12.162]
[1748544413968,1.0683,2648.9,2647.8,10.0]
[1748544414147,1.0683,2648.9,2647.8,20.362348]
[1748544414350,7.89214168,2649.0,2647.8,20.362348]
[1748544414351,1.0934,2648.7,2647.9,0.55]
[1748544414956,1.0934,2648.7,2648.0,2.137835]
[1748544415157,1.0934,2648.7,2647.9,0.55]
[1748544415973,0.89604417,2648.8,2647.8,10.0]
[1748544415974,3.77557955,2648.6,2647.8,10.0]
[1748544416195,1.1686,2648.4,2647.4,4.574982]
[1748544416352,1.1686,2648.4,2647.5,0.55]
[1748544416550,1.1686,2648.4,2647.5,14.947686]
[1748544416769,1.1686,2648.4,2647.6,10.0]
[1748544417002,1.1686,2648.3,2647.2,3.48124885]
[1748544417257,1.1686,2648.3,2647.5,10.0]
[1748544417456,1.1686,2648.3,2647.5,10.273035]
[1748544417884,1.1686,2648.3,2647.6,14.520164]
[1748544418199,1.1686,2648.3,2647.6,13.725164]
[1748544418886,1.1686,2648.3,2647.6,2.223088]
[1748544419202,1.1686,2648.3,2647.6,14.170706]
[1748544419361,1.7348158,2648.3,2647.7,10.0]
[1748544419557,1.7348158,2648.3,2647.6,4.170706]
[1748544419558,1.7348158,2648.3,2647.6,14.170706]
[1748544419891,4.115,2648.2,2647.7,4.5295101]
[1748544420299,4.115,2648.2,2647.5,15.827825]
[1748544420471,4.115,2648.2,2647.5,12.859545]
[1748544420866,4.115,2648.2,2647.7,12.003]
[1748544421064,4.115,2648.2,2647.7,2.003]
[1748544421274,4.115,2648.2,2647.5,12.60225]
[1748544421476,4.115,2648.2,2647.7,14.336703]
[1748544421667,4.115,2648.2,2647.5,5.8447351]
[1748544422072,4.115,2648.2,2647.6,3.771]
[1748544422273,4.115,2648.2,2647.7,10.0]
[1748544422472,4.115,2648.2,2647.6,16.412424]
[1748544422680,4.114,2648.1,2647.6,16.412424]
[1748544422875,1.1686,2648.3,2647.7,0.55]
[1748544423077,4.114,2648.2,2647.8,17.2402]
[1748544423290,4.114,2648.2,2647.8,13.699]
[1748544423476,4.114,2648.2,2647.8,13.0819]
[1748544425467,4.114,2648.2,2647.7,13.187573]
[1748544425669,4.114,2648.2,2647.8,3.187573]
[1748544426310,4.114,2648.2,2647.2,1.89753858]
[1748544426311,1.1366,2648.1,2647.2,1.89753858]
[1748544426508,1.1366,2648.1,2646.9,41.63322]
[1748544426709,1.1366,2648.1,2647.2,1.89753858]
[1748544427033,4.113,2648.0,2647.4,10.0]
[1748544427212,1.1366,2648.1,2647.6,10.0]
[1748544427423,4.113,2648.0,2647.5,4.53050697]
[1748544428533,4.113,2648.0,2647.3,10.0]
[1748544428534,4.690786,2648.0,2647.3,10.0]
[1748544428747,4.690786,2648.0,2647.4,10.0]
[1748544428949,4.690786,2648.0,2647.5,10.0]
[1748544429226,4.690786,2648.0,2647.4,3.4208]
[1748544429394,4.690786,2648.0,2647.3,0.55]
[1748544429596,4.690786,2648.0,2647.4,3.086305]
[1748544429904,4.690786,2648.0,2647.5,10.0]
[1748544430721,4.690786,2648.0,2647.4,4.117746]
[1748544430902,4.690786,2648.0,2647.5,10.0]
[1748544431106,4.690786,2648.0,2647.4,4.097988]
[1748544431300,4.690786,2648.0,2647.5,10.0]
[1748544431504,4.690786,2648.0,2647.4,16.270268]
[1748544431706,4.113,2648.0,2647.6,10.0]
[1748544431914,4.113,2648.0,2647.4,10.0]
[1748544432223,4.111,2647.9,2647.6,10.0]
[1748544432421,4.111,2647.9,2647.5,16.265595]
[1748544432623,4.111,2647.9,2647.6,10.0]
[1748544432823,4.111,2647.9,2647.5,6.265595]
[1748544433031,4.111,2647.9,2647.6,10.0]
[1748544433530,4.111,2647.9,2647.5,4.074141]
[1748544433824,4.111,2647.9,2647.6,10.0]
[1748544434203,4.111,2647.9,2647.5,4.074141]
[1748544434559,4.111,2647.9,2647.6,10.0]
[1748544434901,4.111,2647.9,2647.4,4.53011634]
[1748544435437,1.1752,2647.8,2647.3,10.0]
[1748544435641,1.1752,2647.8,2646.9,3.119922]
[1748544435823,1.1752,2647.8,2646.8,1.89753858]
[1748544436006,8.41238906,2647.9,2646.2,4.109]
[1748544436007,1.1049,2647.5,2646.4,1.89753858]
[1748544436234,1.1049,2647.3,2646.4,1.89753858]
[1748544436439,1.1366,2647.1,2646.2,14.66968138]
[1748544436743,1.1366,2646.9,2646.2,12.132479]
[1748544436889,1.1366,2646.9,2646.3,10.0]
[1748544437091,1.1366,2646.9,2646.2,4.011991]
[1748544437092,1.1366,2646.9,2645.9,5.924403]
[1748544437388,1.1366,2646.9,2645.7,0.0683]
[1748544437606,1.1366,2646.7,2645.9,2.032448]
[1748544438289,1.1366,2646.7,2646.0,6.43005282]
[1748544438628,1.1366,2646.7,2646.0,6.42987617]
[1748544438989,1.1366,2646.7,2646.0,1.89753858]
[1748544439193,1.1366,2646.7,2646.4,1.89753858]
[1748544439487,5.2456,2646.7,2646.5,0.18975386]
[1748544439721,5.2456,2646.7,2646.4,1.89753858]
[1748544439914,5.2456,2646.7,2646.1,1.90181652]
[1748544440116,5.2456,2646.7,2646.3,10.0]
[1748544440323,5.2456,2646.7,2646.3,5.965467]
[1748544440695,5.2456,2646.7,2646.3,3.792187]
[1748544440902,5.2456,2646.7,2646.3,2.02261393]
[1748544443717,5.2456,2646.7,2646.3,10.0]
[1748544443926,5.2456,2646.7,2646.2,10.0]
[1748544444094,5.2456,2646.7,2646.1,11.90181652]
[1748544444504,5.2456,2646.7,2646.2,12.035358]
[1748544444749,5.2456,2646.7,2646.2,3.350358]
[1748544445108,5.2456,2646.7,2646.2,2.930358]
[1748544445459,1.1366,2646.7,2646.4,13.3045838]
[1748544445746,5.2436,2646.7,2646.5,10.0]
[1748544446254,5.2436,2646.7,2646.4,3.485097]
[1748544446534,5.2436,2646.7,2646.4,16.016377]
[1748544447343,5.2436,2646.7,2646.5,10.0]
[1748544447541,5.2436,2646.7,2646.4,10.876377]
[1748544447705,1.0861,2647.0,2646.6,4.53158137]
[1748544447902,4.106,2647.3,2647.0,1.90181652]
[1748544448155,1.0861,2647.3,2647.0,1.90181652]
[1748544448638,4.67253912,2647.8,2647.0,1.90181652]
[1748544448639,5.1921,2647.5,2647.0,1.90181652]
[1748544448855,5.1921,2647.5,2647.1,4.53058888]
[1748544449441,5.1921,2647.5,2647.3,10.0]
[1748544450036,5.1921,2647.5,2647.2,2.535987]
[1748544450218,5.1921,2647.5,2647.0,6.4324054]
[1748544450544,5.1921,2647.5,2647.0,7.07564594]
[1748544451042,5.1921,2647.5,2647.2,10.0]
[1748544451248,5.1921,2647.5,2647.2,3.634987]
[1748544451455,5.1921,2647.5,2647.1,10.0]
[1748544451622,5.1921,2647.5,2647.0,1.90181652]
[1748544451623,5.1921,2647.5,2647.0,11.90181652]
[1748544451826,4.104,2647.4,2647.1,3.265429]
[1748544452125,4.104,2647.4,2647.2,10.0]
[1748544452429,4.104,2647.4,2647.1,1.96978268]
[1748544452628,5.1901,2647.5,2647.1,10.125856]
[1748544452830,5.1901,2647.5,2647.1,8.143779]
[1748544453206,5.1901,2647.5,2647.1,8.48892231]
[1748544453411,5.1901,2647.5,2647.3,10.0]
[1748544454139,5.1901,2647.5,2647.1,10.0]
[1748544454342,5.1901,2647.5,2647.3,10.0]
[1748544454542,5.1901,2647.5,2647.1,10.0]
[1748544454747,5.1891,2647.5,2647.3,10.0]
[1748544454932,5.1891,2647.5,2647.2,15.095042]
[1748544455128,5.1891,2647.5,2647.2,3.495042]
[1748544455330,5.1891,2647.5,2647.2,3.231042]
[1748544457297,5.1891,2647.5,2647.2,10.0]
[1748544457449,1.0861,2647.5,2647.2,10.0]
[1748544457792,5.1881,2647.5,2647.1,3.553429]
[1748544457972,5.1881,2647.5,2647.2,16.766284]
[1748544458181,5.1881,2647.5,2647.2,14.593004]
[1748544458418,4.102,2647.5,2647.2,7.63321279]
[1748544458684,4.102,2647.5,2647.1,5.08066431]
[1748544459050,1.0801,2647.4,2647.0,6.43248083]
[1748544459251,4.101,2647.3,2646.9,10.0]
[1748544459488,4.101,2647.3,2646.8,11.831617]
[1748544459690,4.101,2647.3,2647.0,23.165173]
[1748544459867,1.0801,2647.4,2647.0,15.5366903]
[1748544460053,4.101,2647.2,2647.1,20.69027845]
[1748544460247,4.101,2647.2,2647.1,9.77448045]
[1748544460452,4.101,2647.4,2647.2,19.537993]
[1748544460718,4.101,2647.4,2647.2,17.032713]
[1748544461008,1.116,2647.9,2647.2,9.215993]
[1748544461188,4.1,2647.8,2647.2,13.74644935]
[1748544461392,4.1,2647.8,2647.2,4.53045635]
[1748544461593,4.1,2647.7,2647.4,15.016281]
[1748544462187,4.1,2647.7,2647.4,2.196418]
[1748544463129,4.1,2647.6,2647.4,2.196418]
[1748544463292,4.1,2647.6,2647.4,3.86906063]
[1748544463492,1.116,2647.9,2647.4,1.67264263]
[1748544463718,4.099,2647.6,2647.4,1.67264263]
[1748544463937,1.116,2647.9,2647.4,1.67264263]
[1748544464141,4.099,2647.8,2647.4,1.67264263]
[1748544465311,1.116,2647.9,2647.5,54.1976368]
[1748544465496,1.116,2647.9,2647.7,10.0]
[1748544465708,4.098,2647.8,2647.7,3.554629]
[1748544466296,4.098,2647.8,2647.0,0.55]
[1748544466297,1.1828,2647.7,2647.0,0.55]
[1748544466657,1.1828,2647.7,2647.1,3.351629]
[1748544466810,1.71088,2647.7,2647.1,2.24324]
[1748544467512,1.71088,2647.7,2647.2,10.0]
[1748544467710,1.71088,2647.7,2647.1,12.08624]
[1748544468670,1.71088,2647.7,2646.4,11.25670064]
[1748544468671,1.1226,2647.5,2646.5,7.609077]
[1748544468800,1.1888,2647.3,2646.6,10.0]
[1748544469155,1.1888,2647.3,2646.6,0.55]
[1748544469156,0.52858,2647.2,2646.6,0.55]
[1748544469296,1.1888,2647.3,2646.8,1.90042545]
[1748544469631,1.1888,2647.3,2647.0,2.880729]
[1748544469825,1.1888,2647.3,2647.1,10.0]
[1748544470028,1.1888,2647.3,2647.0,10.0]
[1748544470198,1.1888,2647.3,2647.1,10.0]
[1748544470397,1.1888,2647.3,2647.1,3.330341]
[1748544471109,1.1888,2647.3,2647.1,2.535341]
[1748544472195,1.1888,2647.3,2647.0,10.0]
[1748544472534,1.1888,2647.3,2647.1,10.0]
[1748544472741,1.1888,2647.3,2647.0,10.0]
[1748544473311,3.7766597,2647.9,2647.0,10.0]
[1748544473312,1.1441,2648.4,2647.2,12.68257826]
[1748544473511,1.1441,2648.4,2647.9,1.90042545]
[1748544473712,1.1441,2648.4,2648.0,4.34357]
[1748544473923,5.2391,2648.4,2648.1,10.0]
[1748544474126,5.2391,2648.4,2648.2,10.91]
[1748544474302,5.2391,2648.4,2648.0,25.343706]
[1748544474676,4.095,2648.5,2648.3,13.657784]
[1748544474800,1.1442,2649.0,2648.3,13.66816045]
[1748544475001,4.095,2648.9,2648.4,3.538492]
[1748544475236,1.1442,2649.0,2648.4,3.538492]
[1748544475444,4.095,2648.9,2648.4,3.538492]
[1748544475639,4.094,2648.8,2648.4,3.538492]
[1748544475800,1.1442,2649.0,2648.4,3.538492]
[1748544476003,4.094,2648.9,2648.4,3.538492]
[1748544476709,4.094,2648.8,2648.4,3.538492]
[1748544476917,1.1442,2649.0,2648.4,3.538492]
[1748544477134,4.093,2648.9,2648.4,3.538492]
[1748544477304,4.093,2648.9,2648.5,20.071393]
[1748544477503,1.1442,2649.0,2648.5,20.071393]
[1748544477504,4.093,2648.8,2648.5,14.780403]
[1748544477897,4.093,2648.8,2648.5,13.538982]
[1748544479536,1.1442,2649.0,2648.5,13.538982]
[1748544479754,4.092,2648.7,2648.5,13.538982]
[1748544480907,4.092,2648.7,2648.5,11.8498]
[1748544481675,1.1442,2649.0,2648.5,11.8498]
[1748544481952,4.091,2648.9,2648.5,1.38463897]
[1748544482273,4.091,2648.9,2648.2,19.770776]
[1748544482458,4.091,2648.9,2648.4,1.89882975]
[1748544482753,4.091,2648.9,2648.5,18.907733]
[1748544482917,4.091,2648.9,2648.5,22.8389007]
[1748544483115,4.091,2648.9,2648.6,18.404123]
[1748544483362,4.091,2648.9,2648.6,18.160273]
[1748544483952,4.091,2648.9,2648.6,14.006125]
[1748544484154,4.091,2648.9,2648.6,10.334905]
[1748544484339,4.091,2648.9,2648.5,8.819631]
[1748544484515,4.091,2648.9,2648.4,10.677451]
[1748544484516,4.80229784,2648.9,2648.4,10.677451]
[1748544484723,1.0867,2648.8,2648.0,15.762029]
[1748544486044,1.0867,2648.8,2648.0,19.90341851]
[1748544486249,1.0867,2648.8,2648.1,13.842823]
[1748544486762,1.0867,2648.8,2648.0,9.404154]
[1748544487059,0.58889978,2648.7,2648.0,9.404154]
[1748544487551,1.1233,2648.6,2648.0,9.404154]
[1748544487757,4.089,2648.5,2648.0,9.404154]
[1748544487963,1.1233,2648.4,2647.5,1.144]
[1748544488146,1.1233,2648.2,2647.4,15.62063]
[1748544488321,1.1233,2648.2,2647.8,16.442463]
[1748544488322,4.088,2648.1,2647.8,16.442463]
[1748544489472,4.088,2648.1,2648.0,29.781227]
[1748544489774,4.088,2648.1,2648.0,17.607947]
[1748544489940,4.088,2648.1,2647.9,10.2908]
[1748544490458,1.0853,2648.0,2647.8,12.452024]
[1748544490665,1.0853,2648.0,2647.8,11.243824]
[1748544490969,1.0853,2648.0,2647.6,12.27809]
[1748544491152,1.0853,2648.0,2647.6,14.17691975]
[1748544491363,1.0853,2648.0,2647.7,14.108524]
[1748544491653,1.0853,2648.0,2647.7,18.63817135]
[1748544491883,1.0853,2648.0,2647.8,13.833124]
[1748544492975,1.0853,2648.0,2647.7,10.190524]
[1748544493305,1.0853,2648.0,2647.0,2.10725]
[1748544493443,1.0853,2648.0,2646.9,2.257651]
[1748544493444,1.0853,2647.8,2646.9,2.257651]
[1748544493643,1.0853,2647.6,2646.6,0.68411435]
[1748544493947,4.086,2647.5,2646.7,2.02564]
[1748544494144,4.086,2647.5,2646.8,4.53139883]
[1748544494344,4.086,2647.5,2647.0,10.0]
[1748544494643,4.086,2647.5,2647.0,12.69579]
[1748544494842,4.086,2647.5,2647.0,11.36479]
[1748544495079,4.60313,2647.5,2647.0,11.065131]
[1748544495284,4.60313,2647.5,2646.9,11.345931]
[1748544495481,4.60313,2647.5,2647.0,11.065131]
[1748544495883,4.60313,2647.5,2647.0,10.0]
[1748544496132,4.60313,2647.5,2647.0,11.065131]
[1748544496394,4.60313,2647.5,2647.0,10.0]
[1748544496581,4.60313,2647.5,2647.0,11.065131]
[1748544498270,4.60313,2647.5,2647.0,10.523808]
[1748544499498,4.67253912,2647.8,2647.5,9.85923]
[1748544499811,4.67253912,2647.8,2647.2,1.89882975]
[1748544499812,1.1505,2647.6,2647.2,1.89882975]
[1748544500002,4.085,2647.5,2647.3,5.037788]
[1748544500297,4.085,2647.5,2647.2,1.90029856]
[1748544500485,4.085,2647.5,2647.3,2.15264]
[1748544502178,5.2345,2647.6,2647.2,11.90029856]
[1748544502569,5.2345,2647.6,2647.3,10.0]
[1748544502914,5.2345,2647.6,2647.2,11.90029856]
[1748544503413,5.2345,2647.6,2647.3,3.588732]
[1748544503608,5.2345,2647.6,2647.3,3.168632]
[1748544503813,1.1903,2647.4,2646.7,14.849247]
[1748544504117,1.1903,2647.4,2646.8,10.0]
[1748544504275,1.1903,2647.4,2647.0,10.0]
[1748544504472,1.1903,2647.4,2647.1,7.493586]
[1748544504696,4.083,2647.4,2647.3,16.311856]
[1748544505012,4.083,2647.4,2647.3,6.311856]
[1748544505212,1.1763,2648.0,2647.3,6.311856]
[1748544505383,1.1763,2648.0,2647.5,11.90029856]
[1748544505572,1.1763,2648.0,2647.7,10.0]
[1748544505771,4.083,2647.9,2647.6,4.52999848]
[1748544506188,5.2593,2648.0,2647.6,4.52999848]
[1748544506379,5.2593,2648.0,2647.6,12.494554]
[1748544506580,5.2593,2648.0,2647.5,1.90029856]
[1748544506782,5.78523,2648.0,2647.6,2.517517]
[1748544509714,1.1508,2647.9,2647.3,10.580007]
[1748544509874,1.1508,2647.9,2647.0,13.204104]
[1748544510632,1.1508,2647.9,2647.2,23.3038]
[1748544510780,0.575973,2647.8,2647.2,13.3038]
[1748544511477,1.116,2647.7,2647.1,4.5300923]
[1748544511801,1.116,2647.5,2647.1,11.742984]
[1748544512173,1.116,2647.5,2647.2,24.03685556]
[1748544512373,1.116,2647.5,2647.3,16.098967]
[1748544512612,1.116,2647.5,2647.3,3.796967]
[1748544512812,1.116,2647.5,2647.3,11.735459]
[1748544515335,1.116,2647.5,2647.2,1.90029856]
[1748544516639,5.195,2647.5,2647.2,1.90029856]
[1748544521397,5.7145,2647.5,2646.9,6.43114572]
[1748544521598,5.195,2647.5,2647.0,4.52092]
[1748544521834,5.195,2647.5,2647.2,10.0]
[1748544522137,5.195,2647.5,2647.2,28.72189016]
[1748544522432,5.195,2647.5,2647.1,4.53084716]
[1748544522640,5.195,2647.5,2647.2,13.753968]
[1748544523928,5.195,2647.5,2647.3,10.0]
[1748544524134,1.116,2647.5,2647.2,17.150726]
[1748544524334,5.193,2647.5,2647.2,15.652181]
[1748544524808,5.193,2647.5,2647.2,6.116584]
[1748544525021,5.193,2647.5,2647.3,10.0]
[1748544525223,5.193,2647.5,2647.2,5.063388]
[1748544525427,1.1109,2647.8,2647.4,33.866698]
[1748544525735,4.076,2647.7,2647.4,19.694456]
[1748544526240,4.076,2647.7,2647.4,14.281269]
[1748544526417,4.076,2647.7,2647.3,17.423769]
[1748544526617,4.076,2647.7,2647.4,2.311969]
[1748544526957,1.1301,2647.6,2646.8,10.31326138]
[1748544527116,1.1301,2647.6,2646.8,32.10871]
[1748544527314,1.1301,2647.6,2647.0,26.25683656]
[1748544527540,1.1301,2647.6,2647.1,13.496218]
[1748544527949,1.1301,2647.6,2647.1,13.178218]
[1748544528155,1.702579,2647.6,2647.1,13.178218]
[1748544528540,1.702579,2647.6,2647.0,1.90029856]
[1748544528819,1.702579,2647.6,2647.2,16.532998]
[1748544529018,1.1301,2647.6,2647.2,16.532998]
[1748544529260,1.1301,2647.8,2647.4,1.90029856]
[1748544529482,4.075,2647.7,2647.4,1.90029856]
[1748544529694,4.075,2647.7,2647.4,6.830428]
[1748544529961,4.075,2647.7,2647.5,10.0]
[1748544530166,4.075,2647.7,2647.3,1.90029856]
[1748544530369,4.075,2647.7,2647.5,10.0]
[1748544531073,1.1301,2647.8,2647.4,2.13084]
[1748544531074,1.1301,2647.8,2647.4,13.650628]
[1748544531272,4.074,2647.6,2647.4,13.650628]
[1748544531765,1.1301,2647.8,2647.4,13.650628]
[1748544531977,1.87777837,2649.1,2647.2,5.70089568]
[1748544531978,4.074,2647.7,2647.6,27.931186]
[1748544532119,1.1859,2648.0,2647.7,1.90029856]
[1748544532322,4.074,2647.8,2647.7,5.40318456]
[1748544532543,4.074,2647.8,2647.7,1.90029856]
[1748544532742,4.074,2647.8,2647.7,15.90019256]
[1748544533002,4.074,2647.8,2647.7,5.94449256]
[1748544533146,4.074,2647.8,2647.7,5.08122656]
[1748544534011,1.1016,2648.3,2647.8,10.0]
[1748544534311,1.1016,2648.3,2647.8,4.52953338]
[1748544534469,4.073,2648.2,2647.9,15.364168]
[1748544535003,4.073,2648.1,2647.9,15.364168]
[1748544535703,4.073,2648.1,2647.9,14.20184]
[1748544536124,4.073,2648.1,2647.8,10.009019]
[1748544536972,4.072,2648.0,2647.8,10.009019]
[1748544537582,1.171,2647.9,2647.1,1.90029856]
[1748544537798,1.171,2647.9,2647.5,1.90029856]
[1748544538013,1.171,2647.9,2647.6,2.11972]
[1748544538694,1.171,2647.9,2647.5,1.90029856]
[1748544539011,1.171,2647.9,2647.5,6.43022683]
[1748544539806,1.171,2648.3,2647.5,7.07315234]
[1748544539992,4.071,2648.2,2647.5,2.54332124]
[1748544540322,1.171,2648.3,2647.9,1.90029856]
[1748544540469,1.171,2648.8,2647.9,1.90029856]
[1748544540793,1.171,2648.6,2647.9,1.90029856]
[1748544541012,5.241,2648.6,2648.1,4.52906214]
[1748544541205,5.241,2648.6,2647.9,1.90029856]
[1748544541406,1.171,2648.4,2647.9,1.90029856]
[1748544542824,0.5241,2648.5,2647.3,1.90029856]
[1748544542825,1.171,2648.1,2647.3,1.90029856]
[1748544543114,1.171,2647.9,2647.3,1.90029856]
[1748544544411,1.171,2647.9,2647.3,6.43076975]
[1748544544617,1.171,2647.9,2647.3,6.43046197]
[1748544544790,0.5241,2647.8,2647.3,6.43046197]
[1748544545203,0.5241,2647.8,2647.3,1.90029856]
[1748544545204,4.5931,2647.8,2647.3,1.90029856]
[1748544545520,1.171,2648.1,2647.7,1.90029856]
[1748544545726,1.171,2649.0,2648.0,0.55]
[1748544545881,1.171,2649.0,2648.8,1.90029856]
[1748544546219,1.131,2650.2,2648.8,1.90029856]
[1748544546220,4.069,2649.2,2648.8,1.90029856]
[1748544546385,2.47245621,2649.1,2648.8,6.42788498]
[1748544547305,2.47245621,2649.1,2648.8,1.90029856]
[1748544547983,2.47245621,2649.1,2648.7,6.42602076]
[1748544548414,5.94477837,2649.1,2648.7,6.42602076]
[1748544549986,5.94377837,2649.1,2648.7,6.42602076]
[1748544550609,5.92377837,2649.1,2648.7,6.42602076]
[1748544550787,5.92377837,2649.1,2648.8,4.860717]
[1748544553343,5.92377837,2649.1,2648.8,3.02357]
[1748544554194,1.85777837,2649.1,2648.8,3.02357]
[1748544554422,4.065,2649.0,2648.9,36.694113]
[1748544554617,4.065,2649.0,2648.9,15.91322]
[1748544554825,4.065,2649.0,2648.7,1.8982107]
[1748544555021,4.065,2649.0,2648.8,11.523804]
[1748544555432,4.065,2649.0,2648.8,10.0]
[1748544555635,1.0755,2648.9,2648.3,17.274052]
[1748544555834,4.065,2649.0,2648.3,17.274052]
[1748544556203,4.064,2648.9,2648.7,27.503394]
[1748544556397,4.064,2648.9,2648.7,18.96902]
[1748544556695,4.064,2648.9,2648.7,16.98013]
[1748544557514,4.064,2648.9,2648.7,15.68846]
[1748544557992,4.064,2648.9,2648.7,15.36746]
[1748544558707,4.064,2648.9,2648.7,14.862128]
[1748544558912,4.064,2648.9,2648.7,11.769758]
[1748544559423,4.064,2648.9,2648.6,1.8982107]
[1748544559623,4.064,2648.9,2648.7,2.015147]
[1748544559811,4.064,2648.9,2648.6,11.8982107]
[1748544560020,4.064,2648.9,2648.7,13.504641]
[1748544560412,4.064,2648.9,2648.7,6.265934]
[1748544560718,4.064,2648.9,2648.7,5.172934]
[1748544560917,4.064,2648.9,2648.8,10.0]
[1748544561114,4.064,2648.9,2648.7,14.842981]
[1748544561428,4.064,2648.9,2648.7,10.0]
[1748544561610,4.064,2648.9,2648.7,15.131981]
[1748544561811,4.064,2648.9,2648.7,10.030425]
[1748544562030,4.064,2648.9,2648.6,10.348225]
[1748544563069,4.064,2648.9,2648.5,10.0]
[1748544563202,4.064,2648.9,2648.6,11.7318]